bitfinex-derivatives/quotes_SOLF0:USTF0_20241120
["timestamp","ask_amount","ask_price","bid_price","bid_amount"]
[1732126264281,10.58168351,233.29,233.16,10.58168351]
[1732126264577,2.4896,233.3,233.19,10.58168351]
[1732126264780,5.0967,233.34,233.19,10.58168351]
[1732126265580,5.0967,233.34,233.23,2.1412]
[1732126265779,5.0967,233.34,233.24,2.8]
[1732126266085,2.1409,233.28,233.24,2.8]
[1732126267188,2.1411,233.25,233.24,2.8]
[1732126267685,2.1411,233.25,233.12,30.86]
[1732126267686,10.58168351,233.26,233.12,30.86]
[1732126267882,10.58168351,233.23,233.12,30.86]
[1732126268077,10.58168351,233.23,233.13,2.8]
[1732126268276,10.58168351,233.23,233.13,4.9421]
[1732126268277,2.1416,233.2,233.13,4.9421]
[1732126268481,10.58168351,233.23,233.13,2.8]
[1732126268987,10.58168351,233.23,233.13,4.9422]
[1732126270193,2.1417,233.19,233.14,2.1421]
[1732126270580,10.58168351,233.23,233.13,2.8]
[1732126270784,10.58168351,233.2,233.08,2.67]
[1732126270988,10.58168351,233.2,233.11,2.8]
[1732126271183,2.142,233.15,233.11,2.8]
[1732126271388,10.58168351,233.2,233.11,2.8]
[1732126271685,2.1423,233.12,233.11,2.8]
[1732126271991,10.58168351,233.17,233.03,8.37250673]
[1732126272288,5.1807,233.22,233.04,2.8]
[1732126272289,2.1427,233.08,233.04,2.8]
[1732126272482,10.58168351,233.14,233.04,2.8]
[1732126272881,10.58168351,233.14,233.02,2.5817]
[1732126273083,10.58168351,233.08,233.03,2.8]
[1732126273285,10.58168351,233.08,232.98,54.6124185]
[1732126273484,10.58168351,233.08,232.99,2.8]
[1732126273888,2.1433,233.02,232.99,2.8]
[1732126274290,10.58168351,233.08,232.96,2.1438]
[1732126274291,10.58168351,233.08,233.0,2.8]
[1732126275187,10.58168351,233.11,233.0,2.8]
[1732126276193,2.1429,233.06,233.0,2.8]
[1732126276693,10.58168351,233.11,233.0,2.8]
[1732126276694,2.143,233.04,233.0,2.8]
[1732126276991,10.58168351,233.05,232.96,2.8]
[1732126277187,10.58168351,233.02,232.93,5.93590673]
[1732126277386,10.58168351,232.99,232.93,2.8]
[1732126277589,10.58168351,233.02,232.93,2.8]
[1732126277887,2.8,233.08,232.93,2.8]
[1732126277888,10.58168351,233.05,232.93,2.8]
[1732126278292,5.3144,233.12,232.93,2.8]
[1732126278594,2.1429,233.05,232.99,2.1435]
[1732126278789,2.1429,233.05,233.0,2.8]
[1732126279186,2.1428,233.07,233.0,2.8]
[1732126279383,2.6503,233.12,233.0,13.38168351]
[1732126280396,2.1428,233.07,233.0,13.38168351]
[1732126280587,10.58168351,233.11,232.94,10.58168351]
[1732126280790,10.58168351,233.11,232.97,10.58168351]
[1732126280791,13.02008351,233.11,232.97,10.58168351]
[1732126280987,2.1428,233.07,233.01,2.1433]
[1732126281292,2.6378,233.13,233.02,2.8]
[1732126281491,2.1425,233.1,233.03,4.9431]
[1732126281690,10.58168351,233.17,233.03,13.38168351]
[1732126282091,2.1421,233.15,233.08,2.1427]
[1732126282292,13.21738351,233.23,233.09,10.58168351]
[1732126282490,13.21738351,233.23,233.1,2.8]
[1732126282692,2.6357,233.23,233.1,4.9424]
[1732126284095,2.6357,233.23,233.11,2.1424]
[1732126284696,2.6357,233.23,233.1,2.8]
[1732126284892,16.94015621,233.21,233.1,2.8]
[1732126285096,16.94015621,233.21,233.11,2.8]
[1732126285800,2.1427,233.08,233.01,2.1432]
[1732126286001,2.1427,233.08,233.02,2.8]
[1732126286194,16.94015621,233.17,233.02,2.8]
[1732126286401,2.447,233.16,233.02,2.8]
[1732126286706,5.0008,233.16,233.02,2.8]
[1732126287004,2.1431,233.04,233.02,2.8]
[1732126287400,2.1429,233.05,233.02,2.8]
[1732126287703,16.94015621,233.13,233.02,2.8]
[1732126288001,5.0008,233.16,233.02,2.8]
[1732126288701,5.0008,233.16,233.02,4.9432]
[1732126289393,2.1428,233.07,233.02,4.9432]
[1732126289599,2.1428,233.07,233.02,2.8]
[1732126289895,2.1425,233.1,233.02,2.8]
[1732126290096,5.0008,233.16,233.02,2.8]
[1732126291201,5.0008,233.16,233.03,2.1431]
[1732126291702,2.1426,233.1,233.03,2.1431]
[1732126292698,2.6357,233.23,233.02,2.8]
[1732126292699,2.1423,233.13,233.02,2.8]
[1732126292896,2.6357,233.23,233.02,2.8]
[1732126293100,16.94015621,233.21,233.02,2.8]
[1732126293298,2.1423,233.13,233.02,2.8]
[1732126293904,2.1423,233.12,233.02,2.8]
[1732126294305,16.94015621,233.21,233.07,2.1427]
[1732126294502,16.94015621,233.21,233.02,2.8]
[1732126294904,16.94015621,233.21,233.03,2.143]
[1732126295101,2.1419,233.16,233.04,2.8]
[1732126295308,16.94015621,233.21,233.04,2.8]
[1732126295504,0.74068546,233.2,233.04,2.8]
[1732126295805,0.74068546,233.2,233.04,4.943]
[1732126296199,16.94015621,233.17,233.04,2.8]
[1732126296401,2.1429,233.06,233.05,2.8]
[1732126297408,2.1427,233.08,233.05,2.8]
[1732126298304,2.1428,233.07,233.05,2.8]
[1732126299006,2.1429,233.06,233.05,2.8]
[1732126299212,16.94015621,233.17,233.05,2.8]
[1732126299407,16.94015621,233.21,233.07,2.1428]
[1732126299605,2.1423,233.12,233.07,2.1428]
[1732126300109,2.1422,233.14,233.08,2.1427]
[1732126300314,2.1422,233.14,233.05,2.8]
[1732126300315,16.94015621,233.21,233.05,5.2461]
[1732126300607,2.1422,233.14,233.09,2.1426]
[1732126302306,2.1422,233.13,233.09,2.1426]
[1732126304410,2.1419,233.17,233.11,2.1423]
[1732126304709,2.6357,233.23,233.12,2.8]
[1732126305105,2.6357,233.23,233.12,4.9423]
[1732126305303,2.6357,233.23,233.12,2.8]
[1732126305710,2.6357,233.23,233.13,2.1421]
[1732126306212,2.6357,233.23,233.12,2.8]
[1732126306512,10.58583825,233.27,233.12,2.8]
[1732126307912,10.58583825,233.27,233.16,2.1418]
[1732126308915,10.58583825,233.24,233.12,2.8]
[1732126309509,2.1416,233.2,233.16,2.1419]
[1732126310114,28.29273923,233.29,233.12,2.8]
[1732126310115,28.29273923,233.29,233.13,10.58583825]
[1732126310305,28.29273923,233.29,233.12,2.8]
[1732126310306,10.58583825,233.3,233.16,10.58583825]
[1732126310607,10.58583825,233.33,233.19,10.58583825]
[1732126310811,10.58583825,233.36,233.2,2.8]
[1732126311610,2.6822,233.38,233.22,10.58583825]
[1732126311815,13.21753825,233.39,233.25,10.58583825]
[1732126312005,2.1397,233.41,233.32,10.58583825]
[1732126312205,10.58583825,233.48,233.33,2.8]
[1732126312405,5.3207,233.56,233.33,2.8]
[1732126312406,10.58583825,233.51,233.38,10.58583825]
[1732126313212,10.58583825,233.54,233.41,2.1396]
[1732126313410,10.58583825,233.54,233.42,2.8]
[1732126313809,2.1391,233.47,233.42,2.8]
[1732126314012,10.58583825,233.54,233.43,2.1394]
[1732126314212,10.58583825,233.48,233.42,2.8]
[1732126314411,10.58583825,233.45,233.38,2.8]
[1732126314611,16.91231867,233.44,233.38,2.8]
[1732126315116,2.1398,233.4,233.38,2.8]
[1732126315307,16.91231867,233.44,233.31,2.1405]
[1732126315507,16.91231867,233.44,233.32,2.8]
[1732126315715,7.7895,233.43,233.32,2.8]
[1732126315909,16.91231867,233.4,233.21,24.83771867]
[1732126316108,16.91231867,233.4,233.22,2.8]
[1732126316309,2.1402,233.35,233.22,2.8]
[1732126316518,16.91231867,233.4,233.25,2.1411]
[1732126316718,16.91231867,233.4,233.22,2.8]
[1732126317016,16.91231867,233.36,233.21,7.9254]
[1732126317218,16.91231867,233.36,233.23,2.8]
[1732126317414,2.1411,233.26,233.23,2.8]
[1732126317916,2.1411,233.25,233.23,2.8]
[1732126318613,2.5747,233.31,233.23,2.8]
[1732126319219,5.0421,233.31,233.23,2.8]
[1732126319617,2.1411,233.25,233.23,2.8]
[1732126319815,5.0421,233.31,233.23,2.8]
[1732126320817,2.141,233.26,233.23,2.8]
[1732126321318,5.0421,233.31,233.23,2.8]
[1732126321518,2.1408,233.29,233.23,2.8]
[1732126321719,16.91231867,233.36,233.23,2.8]
[1732126321915,2.1407,233.3,233.23,2.8]
[1732126322221,16.91231867,233.36,233.23,2.8]
[1732126322422,2.1408,233.29,233.23,2.8]
[1732126322614,16.91231867,233.36,233.23,4.9412]
[1732126323121,16.91231867,233.36,233.23,2.8]
[1732126323122,2.1408,233.29,233.23,2.8]
[1732126323324,16.91231867,233.36,233.23,2.8]
[1732126323617,16.91231867,233.36,233.23,4.9413]
[1732126324120,2.5697,233.39,233.23,2.8]
[1732126324518,2.1403,233.35,233.26,2.141]
[1732126324711,2.5697,233.39,233.23,2.8]
[1732126325115,2.1404,233.33,233.25,2.1411]
[1732126325323,2.5697,233.39,233.25,2.1411]
[1732126326021,2.5697,233.39,233.23,2.8]
[1732126326219,2.5697,233.39,233.26,2.141]
[1732126326621,2.1402,233.36,233.26,2.141]
[1732126326821,2.5697,233.39,233.26,2.141]
[1732126327622,16.91231867,233.36,233.18,7.7199]
[1732126327818,16.91231867,233.36,233.19,2.8]
[1732126328417,19.0517173,233.4,233.19,2.8]
[1732126328615,2.6036,233.38,233.19,2.8]
[1732126329435,2.6036,233.38,233.26,2.1409]
[1732126329725,2.5018,233.42,233.29,2.1407]
[1732126329921,2.5018,233.42,233.27,2.8]
[1732126330122,2.1401,233.36,233.27,2.8]
[1732126330320,2.5018,233.42,233.27,2.8]
[1732126330722,2.1398,233.4,233.28,5.0141]
[1732126330921,2.1398,233.4,233.31,2.1405]
[1732126331118,2.1398,233.4,233.28,5.0141]
[1732126331323,2.6881,233.43,233.28,5.0141]
[1732126331524,2.6036,233.45,233.29,16.91231867]
[1732126331725,2.6036,233.45,233.3,2.4498]
[1732126331927,2.1396,233.42,233.3,2.4498]
[1732126332128,2.4932,233.49,233.38,2.1398]
[1732126332326,2.4932,233.49,233.39,2.8]
[1732126334521,16.91231867,233.44,233.35,2.8]
[1732126334722,0.20256,233.51,233.35,2.8]
[1732126335028,16.91231867,233.49,233.35,2.8]
[1732126335222,2.4882,233.48,233.35,2.8]
[1732126335627,2.1398,233.39,233.35,2.8]
[1732126335923,2.4882,233.48,233.36,2.8]
[1732126336127,16.91231867,233.45,233.36,2.8]
[1732126336726,2.14,233.37,233.36,2.8]
[1732126337025,19.08052681,233.41,233.2,16.91231867]
[1732126337327,16.91231867,233.37,233.27,2.8]
[1732126337522,2.4934,233.36,233.27,2.8]
[1732126338924,5.1828,233.4,233.27,2.8]
[1732126339326,2.5721,233.4,233.27,2.8]
[1732126340327,2.1401,233.36,233.29,2.1407]
[1732126340931,2.5721,233.4,233.29,2.1407]
[1732126341435,2.5721,233.4,233.27,4.9408]
[1732126341833,2.1405,233.32,233.27,2.8]
[1732126342334,2.1406,233.31,233.25,5.0067]
[1732126342529,2.5721,233.4,233.26,2.8]
[1732126343835,2.1401,233.36,233.26,2.8]
[1732126344035,2.5721,233.4,233.26,2.8]
[1732126345537,16.91231867,233.37,233.27,2.8]
[1732126345735,16.91231867,233.37,233.28,2.8]
[1732126345945,16.91231867,233.33,233.25,2.8]
[1732126346434,2.1413,233.24,233.17,4.6776]
[1732126346631,16.91231867,233.33,233.18,2.8]
[1732126346940,16.91231867,233.29,233.19,2.8]
[1732126347240,2.4661,233.28,233.19,2.8]
[1732126347444,5.0235,233.28,233.19,2.8]
[1732126347836,5.0235,233.28,233.13,2.4247]
[1732126348036,5.0235,233.28,233.14,2.8]
[1732126348237,5.0235,233.28,233.15,16.91231867]
[1732126348438,2.5574,233.35,233.15,16.91231867]
[1732126348638,2.5574,233.35,233.19,16.91231867]
[1732126349041,2.5574,233.35,233.22,2.1413]
[1732126349240,2.5574,233.35,233.2,2.8]
[1732126349538,2.5574,233.35,233.19,16.91231867]
[1732126349736,2.5574,233.35,233.2,2.8]
[1732126350537,2.1413,233.23,233.2,2.8]
[1732126350738,2.5574,233.35,233.15,40.67984513]
[1732126351039,2.5574,233.35,233.16,13.33557644]
[1732126351246,2.1407,233.3,233.21,2.1415]
[1732126351444,2.5574,233.35,233.22,2.8]
[1732126351843,16.91231867,233.33,233.15,5.94188161]
[1732126352046,16.91231867,233.33,233.16,2.8]
[1732126352341,2.1415,233.21,233.16,2.8]
[1732126352647,16.91231867,233.33,233.16,2.8]
[1732126352847,2.141,233.26,233.2,2.1415]
[1732126353141,16.91231867,233.33,233.16,2.8]
[1732126353545,16.91231867,233.33,233.19,2.1417]
[1732126353741,16.91231867,233.33,233.16,2.8]
[1732126354141,2.1411,233.26,233.16,2.8]
[1732126354546,2.1409,233.27,233.2,2.1415]
[1732126354847,2.1409,233.27,233.16,8.74188161]
[1732126355043,2.1409,233.27,233.17,4.59429488]
[1732126355243,2.5574,233.35,233.21,16.91231867]
[1732126355849,16.91231867,233.41,233.21,16.91231867]
[1732126356045,16.91231867,233.41,233.25,16.91231867]
[1732126356346,0.73798142,233.4,233.26,2.8]
[1732126356548,19.03060688,233.41,233.26,2.8]
[1732126356745,19.03060688,233.41,233.22,7.5002]
[1732126356950,19.03060688,233.41,233.27,2.8]
[1732126357547,2.1406,233.28,233.27,2.8]
[1732126357847,16.91231867,233.33,233.24,2.8]
[1732126358050,2.1409,233.25,233.24,2.8]
[1732126358446,16.91231867,233.33,233.24,2.8]
[1732126358651,2.4979,233.32,233.24,2.8]
[1732126358948,7.7053,233.32,233.24,2.8]
[1732126359344,2.1409,233.25,233.24,2.8]
[1732126359542,16.91231867,233.25,233.15,2.8]
[1732126359746,16.91231867,233.25,233.11,2.6595]
[1732126360049,16.91231867,233.25,233.12,2.8]
[1732126360244,19.10107615,233.25,233.12,2.8]
[1732126362149,16.91231867,233.21,233.12,2.8]
[1732126362351,16.91231867,233.25,233.12,2.8]
[1732126362546,2.1416,233.17,233.12,2.8]
[1732126363248,2.1418,233.16,233.12,2.8]
[1732126363647,19.07571162,233.25,233.12,2.8]
[1732126363945,16.91231867,233.25,233.12,2.8]
[1732126364149,2.8,233.31,233.12,2.8]
[1732126364349,16.91231867,233.29,233.12,2.8]
[1732126364547,16.91231867,233.29,233.13,16.91231867]
[1732126364743,2.1411,233.24,233.17,2.1416]
[1732126364948,2.1411,233.24,233.18,2.8]
[1732126365153,16.91231867,233.29,233.18,2.8]
[1732126365348,2.1408,233.26,233.2,2.1414]
[1732126365545,7.7053,233.32,233.18,2.8]
[1732126365955,2.1408,233.26,233.2,2.1413]
[1732126366251,7.7053,233.32,233.2,2.1413]
[1732126366452,2.1406,233.29,233.2,2.1413]
[1732126366643,7.7053,233.32,233.21,2.1412]
[1732126367047,2.1407,233.28,233.19,5.2856]
[1732126367251,7.7053,233.32,233.2,2.1413]
[1732126367453,7.7053,233.32,233.19,5.2856]
[1732126368555,16.91231867,233.37,233.19,5.2856]
[1732126369052,16.91231867,233.37,233.24,2.141]
[1732126369251,16.91231867,233.37,233.25,2.8]
[1732126369451,16.91231867,233.37,233.26,2.1408]
[1732126369851,16.91231867,233.37,233.25,2.8]
[1732126370052,2.1404,233.31,233.25,4.9409]
[1732126370957,2.1404,233.3,233.25,4.9409]
[1732126371255,16.91231867,233.37,233.25,2.8]
[1732126371446,7.7335,233.39,233.25,2.8]
[1732126371447,2.1408,233.27,233.25,2.8]
[1732126371645,16.91231867,233.37,233.25,2.8]
[1732126372554,2.1404,233.31,233.25,2.8]
[1732126374257,2.1404,233.3,233.25,4.9408]
[1732126375052,2.1405,233.29,233.25,2.8]
[1732126375254,7.8405,233.29,233.25,2.8]
[1732126375855,2.1406,233.28,233.25,2.8]
[1732126376557,7.8405,233.29,233.26,2.1408]
[1732126377555,7.8405,233.29,233.25,4.9409]
[1732126377957,7.8405,233.29,233.25,2.8]
[1732126378263,5.7,233.29,233.27,2.1407]
[1732126378457,5.7,233.29,233.25,2.8]
[1732126378664,5.7,233.29,233.28,2.1406]
[1732126378961,1.6622,233.29,233.28,2.1406]
[1732126379158,0.16769,233.43,233.25,19.71231867]
[1732126379355,2.1399,233.37,233.25,19.71231867]
[1732126379756,0.16769,233.43,233.29,16.91231867]
[1732126379956,2.1395,233.4,233.3,2.5172]
[1732126380356,0.16769,233.43,233.3,2.5172]
[1732126380557,0.16769,233.43,233.36,2.1398]
[1732126380558,2.1395,233.41,233.36,2.1398]
[1732126380755,0.16769,233.43,233.37,2.8]
[1732126381172,2.1397,233.38,233.37,2.8]
[1732126381962,2.1406,233.28,233.22,5.94188161]
[1732126382165,16.91231867,233.37,233.23,2.8]
[1732126382364,2.649,233.36,233.24,2.141]
[1732126383065,2.649,233.36,233.23,2.8]
[1732126383262,2.649,233.36,233.26,2.1408]
[1732126383664,2.1404,233.3,233.23,2.8]
[1732126383867,2.649,233.36,233.23,2.8]
[1732126384166,2.649,233.36,233.23,4.941]
[1732126384864,2.1402,233.33,233.23,4.941]
[1732126385065,2.649,233.36,233.23,4.941]
[1732126386370,2.649,233.36,233.23,2.8]
[1732126386669,16.91231867,233.33,233.23,2.8]
[1732126386865,16.91231867,233.33,233.21,30.84]
[1732126386866,2.1407,233.27,233.22,2.8]
[1732126387068,2.1407,233.27,233.22,4.9412]
[1732126387266,5.0721,233.35,233.22,2.8]
[1732126389062,16.91231867,233.29,233.15,5.94188161]
[1732126389269,16.91231867,233.29,233.16,2.8]
[1732126389468,2.1413,233.21,233.16,2.8]
[1732126389666,2.16449266,233.24,233.16,2.8]
[1732126389871,2.646,233.23,233.16,2.8]
[1732126390065,2.1416,233.17,233.16,2.8]
[1732126390467,2.1416,233.17,233.08,5.94188161]
[1732126390673,16.91231867,233.17,233.09,2.8]
[1732126390870,16.91231867,233.17,233.04,2.6202]
[1732126391167,16.91231867,233.17,233.03,5.94188161]
[1732126391168,2.1422,233.11,233.05,2.8]
[1732126391968,2.1421,233.12,233.05,4.9427]
[1732126392181,16.91231867,233.17,233.05,2.8]
[1732126392373,19.71231867,233.21,233.05,2.8]
[1732126393265,2.142,233.14,233.07,2.1425]
[1732126393471,16.91231867,233.21,233.05,2.8]
[1732126393872,2.1418,233.16,233.09,2.1424]
[1732126394271,16.91231867,233.21,233.09,2.1424]
[1732126394470,2.1418,233.15,233.09,2.1424]
[1732126394673,16.91231867,233.21,233.05,2.8]
[1732126394877,2.1415,233.18,233.05,19.71231867]
[1732126395079,5.1337,233.23,233.09,16.91231867]
[1732126395275,2.646,233.23,233.1,2.5414]
[1732126395580,16.91231867,233.29,233.15,2.1418]
[1732126395581,2.1413,233.21,233.15,2.1418]
[1732126396173,2.16557142,233.28,233.11,2.8]
[1732126396379,16.91231867,233.25,233.11,2.8]
[1732126396578,2.1415,233.19,233.11,2.8]
[1732126396878,21.94651867,233.29,233.13,16.91231867]
[1732126397176,2.1413,233.21,233.13,16.91231867]
[1732126397382,2.1413,233.21,233.15,2.1418]
[1732126397579,21.94651867,233.29,233.13,16.91231867]
[1732126397775,5.0342,233.29,233.13,16.91231867]
[1732126398277,2.1408,233.27,233.22,2.1412]
[1732126398483,2.1408,233.27,233.23,2.8]
[1732126398979,4.6409,233.29,233.23,4.9411]
[1732126399182,4.6409,233.29,233.23,2.8]
[1732126399183,2.1406,233.29,233.23,2.8]
[1732126399581,2.1407,233.28,233.23,2.8]
[1732126399779,2.6813,233.33,233.23,2.8]
[1732126400184,2.1408,233.26,233.23,2.8]
[1732126400385,2.6813,233.33,233.23,2.8]
[1732126400582,2.1409,233.25,233.23,2.8]
[1732126400775,2.6813,233.33,233.23,2.8]
[1732126400776,16.91231867,233.32,233.23,2.8]
[1732126401983,2.6813,233.33,233.23,2.8]
[1732126402191,2.1404,233.3,233.24,2.141]
[1732126402685,7.82,233.32,233.24,2.141]
[1732126403287,7.82,233.32,233.27,2.1406]
[1732126404087,9.9603,233.32,233.27,2.1406]
[1732126404287,7.82,233.32,233.25,2.1408]
[1732126404790,2.1404,233.31,233.23,2.8]
[1732126404988,7.82,233.32,233.23,2.8]
[1732126405684,2.1405,233.3,233.25,2.1409]
[1732126405889,2.1405,233.3,233.23,2.8]
[1732126406083,2.1405,233.3,233.25,2.1409]
[1732126407195,7.82,233.32,233.23,2.8]
[1732126407491,2.1405,233.3,233.23,4.941]
[1732126407691,7.82,233.32,233.23,2.8]
[1732126408487,2.1405,233.3,233.21,2.4951]
[1732126408692,2.1405,233.3,233.22,2.78]
[1732126408894,2.1405,233.3,233.25,2.1409]
[1732126409285,2.1405,233.29,233.25,2.1409]
[1732126411592,7.82,233.32,233.22,2.78]
[1732126412593,7.82,233.32,233.25,2.1409]
[1732126412793,7.82,233.32,233.24,16.91231867]
[1732126413494,7.82,233.32,233.29,2.1405]
[1732126413793,7.82,233.32,233.3,2.78]
[1732126413993,7.82,233.32,233.31,2.1403]
[1732126415298,2.6012,233.4,233.31,2.1403]
[1732126415699,2.14,233.36,233.32,2.1402]
[1732126415899,2.14,233.36,233.3,2.78]
[1732126416900,2.4383,233.43,233.3,2.78]
[1732126417200,2.1398,233.37,233.3,2.78]
[1732126417397,2.1398,233.37,233.32,2.1402]
[1732126417604,2.1398,233.37,233.3,2.78]
[1732126419399,2.14,233.35,233.32,2.1402]
[1732126419903,2.1399,233.36,233.32,2.1402]
[1732126420103,2.4383,233.43,233.3,2.78]
[1732126420318,16.91231867,233.4,233.21,5.1218]
[1732126420503,16.91231867,233.4,233.22,2.78]
[1732126420504,2.1403,233.31,233.22,2.78]
[1732126420703,2.67,233.39,233.28,2.1406]
[1732126420904,2.67,233.39,233.29,2.78]
[1732126421308,2.1402,233.33,233.29,4.9205]
[1732126421504,2.1402,233.33,233.3,2.78]
[1732126421802,2.1403,233.32,233.3,2.78]
[1732126422005,2.67,233.39,233.3,4.9204]
[1732126422205,2.1403,233.32,233.3,2.78]
[1732126423405,2.1403,233.31,233.3,2.78]
[1732126424605,2.1403,233.32,233.3,2.78]
[1732126425799,2.1403,233.33,233.3,2.78]
[1732126426004,10.57339128,233.38,233.3,2.78]
[1732126426207,2.1399,233.36,233.3,2.78]
[1732126426406,2.67,233.39,233.3,4.9203]
[1732126426600,2.67,233.39,233.3,2.78]
[1732126426803,2.14,233.35,233.3,2.78]
[1732126427406,2.1402,233.34,233.3,2.78]
[1732126427612,10.57339128,233.38,233.3,2.78]
[1732126427911,2.1401,233.34,233.3,2.78]
[1732126428305,10.57339128,233.38,233.3,2.78]
[1732126430208,2.14,233.35,233.31,2.1403]
[1732126430505,10.57339128,233.41,233.3,2.78]
[1732126430711,2.1399,233.37,233.32,2.1402]
[1732126431105,2.1399,233.37,233.3,2.78]
[1732126431306,2.1399,233.37,233.32,2.1402]
[1732126432412,10.57339128,233.41,233.3,2.78]
[1732126432413,10.57339128,233.41,233.33,2.1401]
[1732126432612,2.1397,233.38,233.33,2.1401]
[1732126432910,2.4383,233.43,233.33,2.1401]
[1732126433511,2.1395,233.4,233.33,2.1401]
[1732126433712,2.4383,233.43,233.33,2.1401]
[1732126434415,2.1398,233.37,233.32,2.1402]
[1732126435213,6.02,233.36,233.33,2.1402]
[1732126436515,8.1599,233.36,233.33,2.1402]
[1732126437132,6.02,233.36,233.33,2.1402]
[1732126437719,6.02,233.36,233.32,2.1402]
[1732126438020,6.02,233.36,233.32,2.78]
[1732126438218,2.1402,233.33,233.32,2.78]
[1732126442922,6.02,233.36,233.3,2.78]
[1732126442923,16.59339128,233.36,233.3,2.78]
[1732126444018,2.1403,233.31,233.3,2.78]
[1732126444620,10.57339128,233.33,233.26,2.78]
[1732126444925,2.5947,233.32,233.26,2.78]
[1732126445319,10.57339128,233.3,233.2,23.70996684]
[1732126445520,10.57339128,233.3,233.21,2.78]
[1732126446217,2.1411,233.24,233.19,8.06889171]
[1732126446418,2.1411,233.24,233.2,2.78]
[1732126447224,10.57339128,233.27,233.19,2.78]
[1732126447621,2.1413,233.21,233.19,2.78]
[1732126448019,10.57339128,233.21,233.14,5.92749171]
[1732126448224,10.57339128,233.21,233.14,2.78]
[1732126448423,10.57339128,233.24,233.14,2.78]
[1732126448726,5.1343,233.26,233.14,2.78]
[1732126448923,10.57339128,233.3,233.17,10.57339128]
[1732126449129,2.5947,233.32,233.17,10.57339128]
[1732126449332,2.1406,233.28,233.23,2.1411]
[1732126449623,2.5947,233.32,233.24,2.78]
[1732126449819,2.1404,233.31,233.25,2.78]
[1732126450226,2.5947,233.32,233.25,2.78]
[1732126450418,2.1404,233.3,233.25,4.9209]
[1732126450819,2.5947,233.32,233.25,2.78]
[1732126451026,2.1404,233.3,233.25,2.78]
[1732126451219,2.5947,233.32,233.25,2.78]
[1732126451621,2.1404,233.3,233.25,2.78]
[1732126451822,2.5947,233.32,233.25,2.78]
[1732126452428,10.57339128,233.3,233.25,2.78]
[1732126453227,2.1411,233.23,233.15,11.02440348]
[1732126453530,10.57339128,233.27,233.16,7.37624717]
[1732126453730,10.57339128,233.27,233.16,2.78]
[1732126453934,2.141,233.24,233.18,2.1415]
[1732126454627,2.1411,233.23,233.18,2.1415]
[1732126455825,2.141,233.25,233.19,2.1414]
[1732126456030,2.141,233.25,233.16,2.78]
[1732126456434,10.57339128,233.3,233.22,2.1411]
[1732126456624,2.5947,233.32,233.23,2.78]
[1732126456823,2.5947,233.32,233.24,2.78]
[1732126457029,2.1405,233.3,233.25,4.9208]
[1732126457227,2.5947,233.32,233.25,4.9208]
[1732126457939,2.1405,233.3,233.25,4.9208]
[1732126458124,2.1405,233.3,233.26,2.1408]
[1732126458329,2.4283,233.35,233.25,2.78]
[1732126458532,6.02,233.36,233.26,10.57339128]
[1732126458735,6.02,233.36,233.25,2.78]
[1732126458929,2.1402,233.33,233.25,2.78]
[1732126459229,2.1402,233.33,233.28,2.1406]
[1732126459636,2.1403,233.32,233.28,2.1406]